fUST/lending_fUST_20250420
["ID","MTS","AMOUNT","RATE_DAILY","PERIOD"]
[358430911,1745142644614,-585.70600563,0.00022465,2]
[358430912,1745142644623,-1074.31,0.00022465,2]
[358430913,1745142644632,-2442.82,0.00022465,2]
[358430914,1745142644643,-500.0,0.00022465,2]
[358430915,1745142644652,-719.15,0.00022465,2]
[358430916,1745142644661,-500.0,0.00022465,2]
[358430917,1745142644670,-353.29874211,0.00022465,2]
[358430918,1745142644679,-655.6,0.00022465,2]
[358430919,1745142644688,-500.0,0.00022465,2]
[358430920,1745142644697,-881.24,0.00022465,2]
[358430921,1745142644707,-500.0,0.00022465,2]
[358430922,1745142644716,-1566.64,0.00022465,2]
[358430923,1745142644726,-500.0,0.00022465,2]
[358430924,1745142644735,-500.0,0.00022465,2]
[358430925,1745142644746,-4896.71,0.00022465,2]
[358430926,1745142644755,-500.0,0.00022465,2]
[358430927,1745142644764,-500.0,0.00022465,2]
[358430928,1745142644773,-900.0,0.00022466,2]
[358430929,1745142644783,-200.0,0.00022488,120]
[358430930,1745142644792,-5065.96616922,0.0002259,4]
[358430931,1745142644802,-587.0,0.00022661,2]
[358430932,1745142644812,-500.0,0.00022739,2]
[358430933,1745142644821,-500.0,0.00022739,2]
[358430934,1745142644831,-188.0,0.00022739,2]
[358430935,1745142644841,-188.0,0.00022739,2]
[358430936,1745142644850,-188.0,0.00022739,2]
[358430937,1745142644859,-188.0,0.00022739,2]
[358430938,1745142644869,-188.0,0.00022739,2]
[358430939,1745142644879,-500.0,0.00022739,2]
[358430940,1745142644893,-188.0,0.00022739,2]
[358430941,1745142644902,-188.0,0.00022739,2]
[358430942,1745142644912,-188.0,0.00022739,2]
[358430943,1745142644922,-188.0,0.00022739,2]
[358430944,1745142644931,-188.0,0.00022739,2]
[358430945,1745142644941,-219.15885177,0.00022739,2]
[358430946,1745142644950,-500.0,0.00022739,2]
[358430947,1745142644960,-500.0,0.00022739,2]
[358430948,1745142644970,-2045.35,0.00022739,2]
[358430949,1745142644979,-1074.31,0.00022739,2]
[358430950,1745142644989,-2442.82,0.00022739,2]
[358430951,1745142644998,-500.0,0.00022739,2]
[358430952,1745142645007,-719.15,0.00022739,2]
[358430953,1745142645017,-500.0,0.00022739,2]
[358430954,1745142645027,-655.6,0.00022739,2]
[358430955,1745142645036,-198.54217571,0.00022739,2]
[358430956,1745142645045,-881.24,0.00022739,2]
[358430957,1745142645055,-500.0,0.00022739,2]
[358430958,1745142645065,-1566.64,0.00022739,2]
[358430959,1745142645075,-500.0,0.00022739,2]
[358430960,1745142645086,-500.0,0.00022739,2]
[358430961,1745142645095,-4896.71,0.00022739,2]
[358430962,1745142645105,-500.0,0.00022739,2]
[358430963,1745142645115,-500.0,0.00022739,2]
[358430964,1745142645125,-587.0,0.00022881,2]
[358430965,1745142645135,-1100.0,0.00023,3]
[358430966,1745142645145,-420.58168056,0.00023,3]
[358430967,1745142645154,-160.0,0.00023,3]
[358430968,1745142645164,-288.0,0.00023,2]
[358430969,1745142645174,-2000.0,0.00023,4]
[358430970,1745142645183,-324.82916761,0.00023,2]
[358430971,1745142645193,-160.0,0.00023,3]
[358430972,1745142645202,-617.0,0.00023,2]
[358430973,1745142645212,-230.73863711,0.00023013,2]
[358430974,1745142645221,-500.0,0.00023013,2]
[358430975,1745142645231,-500.0,0.00023013,2]
[358430976,1745142645240,-500.0,0.00023013,2]
[358430977,1745142645250,-500.0,0.00023013,2]
[358430978,1745142645260,-2045.35,0.00023013,2]
[358430979,1745142645270,-1074.31,0.00023013,2]
[358430980,1745142645279,-2442.82,0.00023013,2]
[358430981,1745142645290,-500.0,0.00023013,2]
[358430982,1745142645299,-719.15,0.00023013,2]
[358430983,1745142645309,-500.0,0.00023013,2]
[358430984,1745142645319,-655.6,0.00023013,2]
[358430985,1745142645328,-881.24,0.00023013,2]
[358430986,1745142645339,-500.0,0.00023013,2]
[358430987,1745142645349,-1566.64,0.00023013,2]
[358430988,1745142645359,-500.0,0.00023013,2]
[358430989,1745142645368,-323.64557533,0.00023013,2]
[358430990,1745142645378,-4896.71,0.00023013,2]
[358430991,1745142645388,-500.0,0.00023013,2]
[358430993,1745142645399,-296.29240848,0.00023013,2]
[358430995,1745142645408,-200.0,0.000231,2]
[358430997,1745142645418,-222.95114076,0.00023176,2]
[358430999,1745142645428,-400.0,0.0002323,2]
[358431000,1745142645437,-500.0,0.00023287,2]
[358431001,1745142645447,-500.0,0.00023287,2]
[358431002,1745142645456,-500.0,0.00023287,2]
[358431003,1745142645466,-500.0,0.00023287,2]
[358431004,1745142645476,-2045.35,0.00023287,2]
[358431005,1745142645485,-1074.31,0.00023287,2]
[358431006,1745142645495,-2442.82,0.00023287,2]
[358431008,1745142645531,-500.0,0.00023287,2]
[358431009,1745142645541,-719.15,0.00023287,2]
[358431010,1745142645550,-500.0,0.00023287,2]
[358431011,1745142645559,-655.6,0.00023287,2]
[358431012,1745142645569,-881.24,0.00023287,2]
[358431014,1745142645579,-477.65181948,0.00023287,2]
[358431015,1745142645589,-1566.64,0.00023287,2]
[358431016,1745142645599,-500.0,0.00023287,2]
[358431017,1745142645609,-4896.71,0.00023287,2]
[358431018,1745142645618,-500.0,0.00023287,2]
[358431019,1745142645627,-982.51,0.000234,31]
[358431020,1745142645636,-982.51,0.000234,31]
[358431021,1745142645647,-982.51,0.000234,31]
[358431022,1745142645656,-982.51,0.000234,31]
[358431023,1745142645666,-982.51,0.000234,31]
[358431024,1745142645676,-982.51,0.000234,31]
[358431025,1745142645685,-982.51,0.000234,31]
[358431026,1745142645695,-982.51,0.000234,31]
[358431027,1745142645704,-982.51,0.000234,31]
[358431028,1745142645714,-982.51,0.000234,31]
[358431029,1745142645723,-982.51,0.000234,31]
[358431030,1745142645732,-982.51,0.000234,31]
[358431031,1745142645742,-982.51,0.000234,31]
[358431032,1745142645752,-982.51,0.000234,31]
[358431033,1745142645761,-982.51,0.000234,31]
[358431034,1745142645771,-982.51,0.000234,31]
[358431035,1745142645780,-982.51,0.000234,31]
[358431036,1745142645790,-982.51,0.000234,31]
[358431038,1745142645799,-982.51,0.000234,31]
[358431039,1745142645809,-982.51,0.000234,31]
[358431041,1745142645818,-982.51,0.000234,31]
[358431043,1745142645827,-982.51,0.000234,31]
[358431044,1745142645836,-982.51,0.000234,31]
[358431046,1745142645846,-982.51,0.000234,31]
[358431047,1745142645855,-5065.96616922,0.00023486,4]
[358431049,1745142645864,-500.0,0.00023561,2]
[358431050,1745142645873,-500.0,0.00023561,2]
[358431051,1745142645884,-476.69227948,0.00023561,2]
[358431052,1745142645894,-500.0,0.00023561,2]
[358431053,1745142645903,-2045.35,0.00023561,2]
[358431055,1745142645912,-1074.31,0.00023561,2]
[358431056,1745142645922,-2442.82,0.00023561,2]
[358431057,1745142645931,-500.0,0.00023561,2]
[358431058,1745142645940,-719.15,0.00023561,2]
[358431059,1745142645949,-203.07827,0.00023561,2]
[358431060,1745142645960,-655.6,0.00023561,2]
[358431061,1745142645972,-881.24,0.00023561,2]
[358431062,1745142645982,-1566.64,0.00023561,2]
[358431063,1745142645990,-500.0,0.00023561,2]
[358431064,1745142646000,-4896.71,0.00023561,2]
[358431065,1745142646009,-153.86409448,0.00023561,2]
[358431066,1745142646017,-190.04049231,0.00023835,2]
[358431067,1745142646028,-500.0,0.00023835,2]
[358431068,1745142646037,-259.64774661,0.00023835,2]
[358431069,1745142646047,-2045.35,0.00023835,2]
[358431070,1745142646057,-1074.31,0.00023835,2]
[358431071,1745142646066,-2442.82,0.00023835,2]
[358431072,1745142646075,-500.0,0.00023835,2]
[358431073,1745142646084,-719.15,0.00023835,2]
[358431074,1745142646094,-655.6,0.00023835,2]
[358431075,1745142646103,-881.24,0.00023835,2]
[358431076,1745142646112,-1566.64,0.00023835,2]
[358431077,1745142646122,-338.41537448,0.00023835,2]
[358431078,1745142646131,-4896.71,0.00023835,2]
[358431079,1745142646140,-200.0,0.00023886,120]
[358431080,1745142646149,-377.94128468,0.000239,2]
[358431081,1745142646159,-377.94128459,0.000239,2]
[358431082,1745142646168,-377.94128459,0.000239,2]
[358431083,1745142646177,-377.94128459,0.000239,2]
[358431084,1745142646186,-377.94128459,0.000239,2]
[358431085,1745142646195,-377.94128459,0.000239,2]
[358431086,1745142646204,-377.94128459,0.000239,2]
[358431087,1745142646214,-377.94128459,0.000239,2]
[358431088,1745142646224,-377.94128459,0.000239,2]
[358431089,1745142646234,-377.94128459,0.000239,2]
[358431090,1745142646243,-2000.0,0.00024,4]
[358431091,1745142646254,-151.0,0.00024,14]
[358431092,1745142646265,-1674.19892408,0.00024,2]
[358431093,1745142646274,-160.0,0.00024,7]
[358431094,1745142646283,-160.0,0.00024,7]
[358431095,1745142646293,-1000.0,0.00024,24]
[358431096,1745142646302,-1120.0,0.00024,4]
[358431097,1745142646311,-250.769999,0.000241,2]
[358431098,1745142646321,-500.0,0.00024109,2]
[358431099,1745142646330,-2045.35,0.00024109,2]
[358431100,1745142646339,-1980.5,0.00024109,2]
[358431101,1745142646348,-1980.5,0.00024109,2]
[358431102,1745142646360,-1980.5,0.00024109,2]
[358431103,1745142646369,-1980.5,0.00024109,2]
[358431104,1745142646378,-1980.5,0.00024109,2]
[358431105,1745142646387,-1980.5,0.00024109,2]
[358431106,1745142646396,-1980.5,0.00024109,2]
[358431107,1745142646405,-1980.5,0.00024109,2]
[358431108,1745142646415,-1980.5,0.00024109,2]
[358431109,1745142646424,-1980.5,0.00024109,2]
[358431110,1745142646433,-1980.5,0.00024109,2]
[358431111,1745142646442,-1980.5,0.00024109,2]
[358431112,1745142646452,-1980.5,0.00024109,2]
[358431113,1745142646461,-1980.5,0.00024109,2]
[358431114,1745142646471,-1980.5,0.00024109,2]
[358431115,1745142646480,-1980.5,0.00024109,2]
[358431116,1745142646489,-1980.5,0.00024109,2]
[358431117,1745142646499,-1980.5,0.00024109,2]
[358431118,1745142646507,-1980.5,0.00024109,2]
[358431119,1745142646517,-1074.31,0.00024109,2]
[358431120,1745142646526,-2442.82,0.00024109,2]
[358431121,1745142646535,-500.0,0.00024109,2]
[358431122,1745142646544,-719.15,0.00024109,2]
[358431123,1745142646553,-655.6,0.00024109,2]
[358431124,1745142646563,-881.24,0.00024109,2]
[358431125,1745142646572,-1566.64,0.00024109,2]
[358431126,1745142646581,-4896.71,0.00024109,2]
[358431127,1745142646590,-1200.0,0.0002411,2]
[358431128,1745142646600,-160.0,0.00024134,3]
[358431129,1745142646609,-160.0,0.00024154,3]
[358431130,1745142646619,-12547.00333974,0.0002416,3]
[358431131,1745142646628,-160.0,0.0002416,3]
[358431132,1745142646638,-839.29847495,0.0002416,3]
[358431133,1745142646647,-160.0,0.0002416,3]
[358431134,1745142646658,-420.40766787,0.0002416,3]
[358431135,1745142646667,-160.0,0.0002416,3]
[358431136,1745142646676,-19631.07698098,0.000242,2]
[358431137,1745142646686,-839.29847495,0.00024234,3]
[358431138,1745142646695,-420.40766787,0.00024234,3]
[358431139,1745142646705,-839.29847495,0.0002424,3]
[358431140,1745142646714,-5065.96616922,0.00024383,5]
[358431141,1745142646723,-500.0,0.00024383,2]
[358431142,1745142646731,-2045.35,0.00024383,2]
[358431143,1745142646741,-1980.5,0.00024383,2]
[358431144,1745142646751,-1074.31,0.00024383,2]
[358431145,1745142646760,-2442.82,0.00024383,2]
[358431146,1745142646769,-311.2334119,0.00024383,2]
[358431147,1745142646779,-719.15,0.00024383,2]
[358431148,1745142646789,-655.6,0.00024383,2]
[358431149,1745142646798,-881.24,0.00024383,2]
[358431150,1745142646808,-1566.64,0.00024383,2]
[358431151,1745142646818,-4896.71,0.00024383,2]
[358431152,1745142646827,-160.0,0.0002449,3]
[358431153,1745142646838,-22590.34477334,0.000245,2]
[358431154,1745142646848,-15420.22939662,0.000245,2]
[358431155,1745142646858,-982.51,0.000245,31]
[358431156,1745142646867,-982.51,0.000245,31]
[358431157,1745142646876,-982.51,0.000245,31]
[358431158,1745142646889,-982.51,0.000245,31]
[358431159,1745142646899,-982.51,0.000245,31]
[358431160,1745142646908,-982.51,0.000245,31]
[358431161,1745142646919,-982.51,0.000245,31]
[358431162,1745142646929,-982.51,0.000245,31]
[358431163,1745142646938,-982.51,0.000245,31]
[358431164,1745142646948,-982.51,0.000245,31]
[358431165,1745142646958,-982.51,0.000245,31]
[358431166,1745142646969,-982.51,0.000245,31]
[358431167,1745142646979,-982.51,0.000245,31]
[358431168,1745142646989,-982.51,0.000245,31]
[358431169,1745142646999,-982.51,0.000245,31]
[358431170,1745142647009,-982.51,0.000245,31]
[358431171,1745142647021,-982.51,0.000245,31]
[358431172,1745142647031,-982.51,0.000245,31]
[358431173,1745142647043,-982.51,0.000245,31]
[358431174,1745142647054,-982.51,0.000245,31]
[358431175,1745142647065,-982.51,0.000245,31]
[358431176,1745142647075,-982.51,0.000245,31]
[358431177,1745142647085,-982.51,0.000245,31]
[358431178,1745142647095,-982.51,0.000245,31]
[358431179,1745142647106,-1000.0,0.00024652,2]
[358431180,1745142647117,-1000.0,0.00024652,2]
[358431181,1745142647126,-1000.0,0.00024652,2]
[358431182,1745142647136,-1000.0,0.00024652,2]
[358431183,1745142647145,-1000.0,0.00024652,2]
[358431184,1745142647155,-1000.0,0.00024652,2]
[358431185,1745142647164,-1000.0,0.00024652,2]
[358431186,1745142647174,-1084.26160807,0.00024652,2]
[358431187,1745142647183,-1000.0,0.00024652,2]
[358431188,1745142647193,-1000.0,0.00024652,2]
[358431189,1745142647204,-1000.0,0.00024652,2]
[358431190,1745142647215,-705.49487419,0.00024652,2]
[358431191,1745142647224,-1000.0,0.00024652,2]
[358431192,1745142647233,-1000.0,0.00024652,2]
[358431193,1745142647243,-507.06156929,0.00024652,2]
[358431194,1745142647253,-355.6,0.00024657,2]
[358431195,1745142647263,-500.0,0.00024657,2]
[358431196,1745142647272,-500.0,0.00024657,2]
[358431197,1745142647282,-500.0,0.00024657,2]
[358431198,1745142647292,-303.51025384,0.00024657,2]
[358431199,1745142647301,-200.0,0.00024657,2]
[358431200,1745142647311,-205.71566771,0.00024657,2]
[358431201,1745142647321,-2045.35,0.00024657,2]
[358431202,1745142647331,-1980.5,0.00024657,2]
[358431203,1745142647340,-1074.31,0.00024657,2]
[358431204,1745142647350,-2442.82,0.00024657,2]
[358431205,1745142647359,-719.15,0.00024657,2]
[358431206,1745142647369,-655.6,0.00024657,2]
[358431207,1745142647378,-881.24,0.00024657,2]
[358431208,1745142647388,-1566.64,0.00024657,2]
[358431209,1745142647397,-4896.71,0.00024657,2]
[358431210,1745142647407,-200.0,0.00024658,2]
[358431211,1745142647416,-200.0,0.00024658,15]
[358431212,1745142647426,-380.0,0.00024658,2]
[358431213,1745142647435,-151.0,0.00024658,7]
[358431214,1745142647444,-151.0,0.00024658,7]
[358431215,1745142647454,-151.0,0.00024658,7]
[358431216,1745142647464,-151.0,0.00024658,7]
[358431217,1745142647473,-151.0,0.00024658,7]
[358431218,1745142647482,-151.0,0.00024658,7]
[358431219,1745142647491,-151.0,0.00024658,7]
[358431220,1745142647500,-151.0,0.00024658,7]
[358431221,1745142647510,-151.0,0.00024658,7]
[358431222,1745142647519,-151.0,0.00024658,7]
[358431223,1745142647529,-839.29847495,0.0002466,7]
[358431224,1745142647538,-160.0,0.0002466,7]
[358431225,1745142647548,-420.40766787,0.0002466,7]
[358431226,1745142647558,-823.0,0.00024698,2]
[358431227,1745142647567,-160.0,0.000247,7]
[358431228,1745142647577,-500.0,0.00024773,2]
[358431229,1745142647587,-500.0,0.00024773,2]
[358431230,1745142647597,-1656.24317607,0.000248,7]
[358431231,1745142647607,-151.0,0.000248,7]
[358431232,1745142647616,-151.0,0.000248,7]
[358431233,1745142647626,-101979.43689748,0.000248,2]
[358431238,1745142939284,-250.0,0.00018713,2]
[358431239,1745142939317,-169.0,0.00018972,2]
[358431247,1745143496207,159.9464948,0.00017983,2]
[358431248,1745143698392,257.8938,0.00017958,2]
[358431249,1745143759265,14167.7718969,0.00017999,2]
[358431269,1745143831997,-543.04026305,0.00018873,2]
[358431270,1745143832007,-682.35310702,0.00018873,2]
[358431271,1745143832016,-304.33742786,0.000189,2]
[358431273,1745143832025,-300.0,0.00018975,2]
[358431275,1745143832035,-300.0,0.00018976,2]
[358431276,1745143832044,-166.61134061,0.00018977,2]
[358431278,1745143832053,-500.0,0.00018977,2]
[358431280,1745143832063,-506.73650222,0.00018977,2]
[358431282,1745143832072,-500.0,0.00018977,2]
[358431283,1745143832081,-500.0,0.00018977,2]
[358431284,1745143832091,-500.0,0.00018977,2]
[358431286,1745143832101,-500.0,0.00018977,2]
[358431288,1745143832111,-500.0,0.00018977,2]
[358431290,1745143832120,-500.0,0.00018977,2]
[358431292,1745143832130,-500.0,0.00018977,2]
[358431295,1745143832139,-159.42514645,0.00018977,2]
[358431298,1745143832148,-96087.49421279,0.00018978,2]
[358431301,1745143832160,-1307.58699236,0.00018978,2]
[358431304,1745143832171,-17720.80984796,0.00018978,2]
[358431307,1745143832182,-39129.07826472,0.00018978,2]
[358431311,1745143832216,-211.74500058,0.00018978,2]
[358431313,1745143832227,-629.54,0.00018978,2]
[358431380,1745143838137,-84519.85367001,0.00018978,2]
[358431382,1745143838149,-78552.73786068,0.00018978,2]
[358431385,1745143838160,-40356.3215383,0.00018978,2]
[358431387,1745143838173,-11484.8326126,0.00018978,2]
[358431389,1745143838182,-9702.0,0.00019,2]
[358431391,1745143838191,-500.0,0.00019041,2]
[358431393,1745143838200,-295.52174144,0.00019173,2]
[358431395,1745143838210,-500.0,0.00019173,2]
[358431397,1745143838219,-500.0,0.00019173,2]
[358431399,1745143838231,-163.79236084,0.00019173,2]
[358431401,1745143838240,-500.0,0.00019173,2]
[358431403,1745143838250,-500.0,0.00019173,2]
[358431405,1745143838259,-500.0,0.00019173,2]
[358431407,1745143838269,-500.0,0.00019173,2]
[358431410,1745143838279,-336.30866202,0.00019173,2]
[358431412,1745143838288,-500.0,0.00019173,2]
[358431414,1745143838298,-500.0,0.00019173,2]
[358431416,1745143838307,-500.0,0.00019173,2]
[358431418,1745143838316,-500.0,0.00019173,2]
[358431420,1745143838325,-500.0,0.00019173,2]
[358431422,1745143838334,-500.0,0.00019173,2]
[358431424,1745143838343,-501.41171875,0.00019178,2]
[358431426,1745143838352,-500.0,0.00019178,2]
[358431428,1745143838361,-500.0,0.00019178,2]
[358431430,1745143838371,-500.0,0.00019178,2]
[358431431,1745143838381,-500.0,0.00019178,2]
[358431433,1745143838390,-500.0,0.00019178,2]
[358431434,1745143838400,-510.95045959,0.00019178,2]
[358431436,1745143838409,-500.0,0.00019178,2]
[358431438,1745143838419,-500.0,0.00019178,2]
[358431440,1745143838428,-500.0,0.00019178,2]
[358431442,1745143838437,-500.0,0.00019178,2]
[358431444,1745143838446,-500.0,0.00019178,2]
[358431446,1745143838455,-500.0,0.00019178,2]
[358431448,1745143838465,-500.0,0.00019178,2]
[358431450,1745143838475,-500.0,0.00019178,2]
[358431452,1745143838483,-500.0,0.00019178,2]
[358431454,1745143838493,-500.0,0.00019178,2]
[358431456,1745143838502,-500.0,0.00019178,2]
[358431458,1745143838511,-500.0,0.00019178,2]
[358431461,1745143838521,-387.68245617,0.00019178,2]
[358431463,1745143838531,-500.0,0.00019178,2]
[358431464,1745143838546,-500.0,0.00019178,2]
[358431467,1745143838555,-500.0,0.00019178,2]
[358431469,1745143838564,-507.94489319,0.00019178,2]
[358431471,1745143838574,-500.0,0.00019178,2]
[358431473,1745143838585,-500.0,0.00019178,2]
[358431475,1745143838594,-500.0,0.00019178,2]
[358431477,1745143838606,-503.91690168,0.00019178,2]
[358431479,1745143838616,-279.00989385,0.00019178,2]
[358431481,1745143838627,-500.0,0.00019178,2]
[358431483,1745143838636,-500.0,0.00019178,2]
[358431485,1745143838645,-500.0,0.00019178,2]
[358431487,1745143838654,-500.0,0.00019178,2]
[358431489,1745143838663,-500.0,0.00019178,2]
[358431491,1745143838673,-505.33011739,0.00019178,2]
[358431493,1745143838683,-500.0,0.00019178,2]
[358431496,1745143838693,-500.0,0.00019178,2]
[358431498,1745143838702,-500.0,0.00019178,2]
[358431500,1745143838711,-500.0,0.00019178,2]
[358431502,1745143838720,-500.0,0.00019178,2]
[358431504,1745143838730,-500.0,0.00019178,2]
[358431506,1745143838739,-500.0,0.00019178,2]
[358431508,1745143838748,-221.05642372,0.00019178,2]
[358431510,1745143838757,-507.14471791,0.00019178,2]
[358431512,1745143838766,-502.75978263,0.00019178,2]
[358431514,1745143838775,-500.0,0.00019178,2]
[358431516,1745143838784,-500.0,0.00019178,2]
[358431518,1745143838793,-500.0,0.00019178,2]
[358431520,1745143838803,-500.0,0.00019178,2]
[358431522,1745143838812,-500.0,0.00019178,2]
[358431524,1745143838821,-500.0,0.00019178,2]
[358431526,1745143838830,-500.0,0.00019178,2]
[358431528,1745143838839,-500.0,0.00019178,2]
[358431530,1745143838848,-500.0,0.00019178,2]
[358431532,1745143838858,-500.0,0.00019178,2]
[358431534,1745143838867,-500.0,0.00019178,2]
[358431536,1745143838877,-500.0,0.00019178,2]
[358431538,1745143838886,-500.0,0.00019178,2]
[358431540,1745143838895,-500.0,0.00019178,2]
[358431542,1745143838904,-500.0,0.00019178,2]
[358431544,1745143838914,-500.0,0.00019178,2]
[358431546,1745143838923,-532.79272639,0.00019178,2]
[358431548,1745143838932,-500.0,0.00019178,2]
[358431550,1745143838942,-500.0,0.00019178,2]
[358431552,1745143838951,-500.0,0.00019178,2]
[358431554,1745143838960,-500.0,0.00019178,2]
[358431556,1745143838969,-500.0,0.00019178,2]
[358431558,1745143838978,-500.0,0.00019178,2]
[358431560,1745143838987,-459.78279053,0.00019178,2]
[358431562,1745143838996,-504.4368688,0.00019178,2]
[358431564,1745143839005,-500.0,0.00019178,2]
[358431566,1745143839015,-509.58386895,0.00019178,2]
[358431568,1745143839024,-500.0,0.00019178,2]
[358431570,1745143839033,-500.0,0.00019178,2]
[358431572,1745143839042,-500.0,0.00019178,2]
[358431574,1745143839051,-501.29181071,0.00019178,2]
[358431576,1745143839061,-500.0,0.00019178,2]
[358431578,1745143839070,-511.76396241,0.00019178,2]
[358431579,1745143839079,-259.93023843,0.00019178,2]
[358431580,1745143839113,-240.06976157,0.00019178,2]
[358431581,1745143839122,-501.8891318,0.00019178,2]
[358431582,1745143839131,-504.3851446,0.00019178,2]
[358431583,1745143839141,-500.0,0.00019178,2]
[358431584,1745143839150,-508.61607379,0.00019178,2]
[358431585,1745143839159,-500.0,0.00019178,2]
[358431586,1745143839169,-511.80561492,0.00019178,2]
[358431588,1745143839178,-466.83377839,0.00019178,2]
[358431590,1745143839188,-500.0,0.00019178,2]
[358431592,1745143839197,-500.0,0.00019178,2]
[358431594,1745143839206,-509.09578497,0.00019178,2]
[358431596,1745143839216,-500.0,0.00019178,2]
[358431598,1745143839225,-500.0,0.00019178,2]
[358431600,1745143839234,-496.08129879,0.00019178,2]
[358431602,1745143839243,-500.0,0.00019178,2]
[358431604,1745143839252,-500.0,0.00019178,2]
[358431606,1745143839261,-500.0,0.00019178,2]
[358431608,1745143839270,-400.73634668,0.00019178,2]
[358431610,1745143839279,-500.0,0.00019178,2]
[358431612,1745143839288,-25.86446415,0.00019178,2]
[358431614,1745143839300,-474.13553585,0.00019178,2]
[358431616,1745143839310,-500.0,0.00019178,2]
[358431618,1745143839319,-500.0,0.00019178,2]
[358431620,1745143839327,-500.0,0.00019178,2]
[358431622,1745143839337,-500.0,0.00019178,2]
[358431624,1745143839348,-503.91757136,0.00019178,2]
[358431626,1745143839357,-500.0,0.00019178,2]
[358431628,1745143839367,-500.0,0.00019178,2]
[358431630,1745143839377,-515.60651541,0.00019178,2]
[358431632,1745143839386,-502.76934461,0.00019178,2]
[358431634,1745143839396,-500.0,0.00019178,2]
[358431636,1745143839405,-510.60520705,0.00019178,2]
[358431638,1745143839415,-500.0,0.00019178,2]
[358431640,1745143839424,-500.0,0.00019178,2]
[358431642,1745143839433,-500.0,0.00019178,2]
[358431644,1745143839443,-500.0,0.00019178,2]
[358431646,1745143839452,-500.0,0.00019178,2]
[358431648,1745143839461,-500.0,0.00019178,2]
[358431650,1745143839471,-500.0,0.00019178,2]
[358431652,1745143839480,-500.0,0.00019178,2]
[358431654,1745143839489,-500.0,0.00019178,2]
[358431656,1745143839499,-500.0,0.00019178,2]
[358431658,1745143839508,-500.0,0.00019178,2]
[358431660,1745143839517,-500.0,0.00019178,2]
[358431662,1745143839527,-500.0,0.00019178,2]
[358431664,1745143839538,-500.0,0.00019178,2]
[358431666,1745143839547,-500.0,0.00019178,2]
[358431668,1745143839556,-506.15298993,0.00019178,2]
[358431670,1745143839565,-500.0,0.00019178,2]
[358431672,1745143839574,-500.0,0.00019178,2]
[358431674,1745143839584,-505.19616564,0.00019178,2]
[358431676,1745143839593,-514.36597136,0.00019178,2]
[358431678,1745143839602,-500.0,0.00019178,2]
[358431680,1745143839611,-500.0,0.00019178,2]
[358431682,1745143839620,-500.0,0.00019178,2]
[358431684,1745143839629,-500.0,0.00019178,2]
[358431686,1745143839639,-500.0,0.00019178,2]
[358431688,1745143839648,-508.65213096,0.00019178,2]
[358431690,1745143839658,-500.0,0.00019178,2]
[358431693,1745143839667,-500.0,0.00019178,2]
[358431695,1745143839676,-500.0,0.00019178,2]
[358431696,1745143839686,-500.0,0.00019178,2]